bitfinex/quotes_ETHUSD_20240707
["timestamp","ask_amount","ask_price","bid_price","bid_amount"]
[1720340165501,3.50514256,3017.7,3017.4,3.0]
[1720340165716,2.3577,3017.7,3017.2,6.30102]
[1720340165922,2.3577,3017.7,3017.3,2.31994]
[1720340166097,2.3577,3017.7,3017.3,5.31994]
[1720340166939,2.3577,3017.7,3017.3,6.30094]
[1720340167231,2.3577,3017.7,3017.0,2.32018]
[1720340167393,1.14748319,3017.6,3017.1,3.30109]
[1720340167596,1.14748319,3017.5,3017.2,3.0]
[1720340168033,1.14748319,3017.5,3017.3,2.31994]
[1720340168261,1.14748319,3017.5,3017.3,3.30094]
[1720340168460,6.51118615,3017.6,3017.3,0.981]
[1720340168620,1.14748374,3017.5,3017.3,0.981]
[1720340168825,6.51118615,3017.6,3017.3,0.981]
[1720340169029,6.51118615,3017.6,3016.7,2.32037]
[1720340169030,2.3577,3017.4,3016.7,2.32037]
[1720340169311,2.3577,3017.2,3016.7,0.981]
[1720340169555,1.14752244,3017.1,3016.7,3.30136]
[1720340170355,1.14769746,3017.0,3016.9,0.981]
[1720340171949,1.14769746,3017.0,3016.9,3.36754882]
[1720340172139,2.2505,3017.5,3017.0,2.32016]
[1720340172313,2.2505,3017.5,3017.1,0.06628009]
[1720340172314,1.14761861,3017.4,3017.1,0.06628009]
[1720340172516,2.2505,3017.5,3017.3,0.981]
[1720340172745,1.14756372,3017.4,3017.3,0.981]
[1720340173650,1.14754649,3017.4,3017.3,0.981]
[1720340175816,6.51118615,3017.9,3017.3,3.30095]
[1720340176017,1.14750898,3017.8,3017.6,0.981]
[1720340176221,1.14750898,3017.7,3017.6,0.981]
[1720340176651,1.14750898,3017.7,3017.3,2.31995]
[1720340176861,2.2505,3017.6,3017.4,0.981]
[1720340177048,1.1474602,3017.5,3017.4,0.981]
[1720340177246,3.4672602,3017.5,3016.9,0.06627693]
[1720340177555,1.1474602,3017.4,3017.0,0.981]
[1720340177755,1.1474602,3017.5,3017.0,0.981]
[1720340179530,1.1474602,3017.5,3017.2,0.981]
[1720340179742,1.1474602,3017.5,3016.9,5.32025]
[1720340179956,2.2505,3017.6,3017.2,2.32002]
[1720340180158,2.2505,3017.6,3017.1,2.32009]
[1720340180374,1.14754909,3017.5,3017.1,2.32009]
[1720340180670,1.14754909,3017.4,3017.1,2.32009]
[1720340180828,1.14754909,3017.5,3017.1,2.32009]
[1720340183305,2.2505,3017.6,3017.1,2.32009]
[1720340183584,1.14755889,3017.5,3017.1,2.32009]
[1720340184158,1.14755889,3017.5,3017.0,2.32012]
[1720340184159,3.39805889,3017.5,3017.2,2.32002]
[1720340184360,3.39805889,3017.5,3017.0,2.32012]
[1720340184361,1.14755889,3017.4,3017.0,2.32012]
[1720340184543,1.14755889,3017.3,3017.1,2.3201]
[1720340184745,1.14755889,3017.2,3017.1,2.3201]
[1720340184944,1.14755889,3017.4,3017.1,2.3201]
[1720340185372,1.14755889,3017.4,3017.1,4.6402]
[1720340185573,3.39805889,3017.7,3017.1,4.6402]
[1720340185760,1.14755889,3017.6,3017.1,4.6402]
[1720340185957,1.14755889,3017.5,3017.1,4.6402]
[1720340186173,1.14755889,3017.4,3017.1,4.6402]
[1720340186498,1.14755889,3017.3,3017.2,2.32003]
[1720340186779,1.14753874,3017.3,3017.2,2.32003]
[1720340188474,2.2505,3017.7,3017.2,5.32003]
[1720340188678,1.1474963,3017.6,3017.2,5.32003]
[1720340188992,1.1474963,3017.5,3017.4,2.31987]
[1720340189161,6.51118615,3017.8,3017.7,2.31964]
[1720340189348,1.14736251,3017.8,3017.7,2.31964]
[1720340192402,1.14736251,3017.8,3017.7,4.63928]
[1720340192572,6.51118615,3018.3,3017.9,2.31946]
[1720340192759,1.14729987,3018.2,3017.9,2.31946]
[1720340192955,1.14729987,3018.1,3017.9,2.31946]
[1720340193155,1.14729862,3018.0,3017.9,2.31946]
[1720340195457,6.51118615,3018.3,3018.2,2.31926]
[1720340195689,6.51118615,3018.3,3018.2,5.31926]
[1720340196187,6.51118615,3018.3,3018.2,7.63852]
[1720340197364,5.9561,3018.7,3018.4,4.63807]
[1720340198272,5.9561,3018.7,3018.4,2.31903]
[1720340198474,5.9561,3018.7,3018.2,5.3192]
[1720340198664,5.9561,3018.7,3018.2,2.3192]
[1720340198993,5.9561,3018.7,3018.3,2.31917]
[1720340199202,5.9561,3018.7,3018.4,2.31909]
[1720340199560,3.51,3018.7,3018.4,2.31905]
[1720340199768,6.51118615,3019.1,3018.5,0.06625214]
[1720340200058,6.51118615,3019.1,3018.8,2.31879]
[1720340200684,6.51118615,3019.1,3019.0,2.31864]
[1720340201298,4.76421,3019.7,3019.0,2.31864]
[1720340201299,8.95728615,3019.7,3019.2,2.31848]
[1720340201469,2.4461,3019.7,3019.2,2.31848]
[1720340202075,2.318,3019.9,3019.2,2.31848]
[1720340202296,2.26150354,3019.8,3019.2,2.31848]
[1720340202494,1.14679444,3019.7,3019.2,2.31848]
[1720340202769,2.3182,3019.6,3018.9,5.31871]
[1720340202971,4.63645,3019.6,3018.9,2.31871]
[1720340203206,0.47643,3019.5,3018.9,2.31871]
[1720340203611,2.3182,3019.6,3018.9,2.31871]
[1720340204409,2.3182,3019.6,3019.0,2.31864]
[1720340206532,2.4461,3019.7,3019.0,2.31864]
[1720340206886,2.4461,3019.7,3019.2,2.31847]
[1720340208129,8.82906615,3020.0,3019.2,2.31847]
[1720340208286,11.14700615,3020.0,3019.2,2.31847]
[1720340208485,2.31795,3019.9,3019.2,2.31847]
[1720340208686,6.51118615,3020.0,3019.3,2.38463458]
[1720340209337,2.4461,3019.3,3018.5,2.31897]
[1720340209500,2.31854,3019.2,3018.5,2.31897]
[1720340209687,2.31854,3019.2,3018.3,2.31912]
[1720340209888,2.31864,3019.1,3018.3,2.31912]
[1720340210630,2.31865,3019.0,3018.3,2.31912]
[1720340211440,2.31865,3019.0,3017.8,2.31956]
[1720340211441,2.31888,3018.7,3017.8,2.31956]
[1720340211597,6.51118615,3018.8,3017.4,2.31987]
[1720340211924,6.51118615,3018.8,3017.3,2.3397]
[1720340211925,2.31897,3018.6,3017.8,2.31956]
[1720340212127,8.83001615,3018.8,3017.9,2.31941]
[1720340212791,9.99988277,3018.8,3017.9,2.31941]
[1720340213253,2.31889,3018.7,3017.9,2.31941]
[1720340213441,2.31889,3018.7,3017.7,2.31963]
[1720340213643,2.31896,3018.6,3017.7,2.31963]
[1720340213976,2.31896,3018.6,3017.7,5.31963]
[1720340214170,2.31904,3018.5,3017.7,3.0]
[1720340214385,2.31904,3018.5,3017.5,2.31977]
[1720340214535,2.31904,3018.5,3017.6,2.31971]
[1720340214867,2.31904,3018.5,3017.7,2.31963]
[1720340216374,2.31904,3018.5,3017.6,5.31971]
[1720340216580,2.31904,3018.5,3017.6,2.31971]
[1720340216866,2.2731,3018.6,3017.6,2.31971]
[1720340216867,2.31911,3018.4,3017.6,2.31971]
[1720340217774,2.31911,3018.4,3017.4,5.31985]
[1720340218061,2.31919,3018.3,3017.4,5.31985]
[1720340218226,2.31919,3018.3,3017.5,2.31979]
[1720340218430,2.31919,3018.3,3017.3,4.65963]
[1720340218431,2.31927,3018.2,3017.3,2.31993]
[1720340220134,2.31934,3018.1,3017.3,2.31993]
[1720340220325,2.31923,3018.3,3017.4,2.31987]
[1720340220531,2.31927,3018.2,3017.5,2.31979]
[1720340220961,2.31927,3018.2,3017.5,5.31979]
[1720340221270,2.31913,3018.4,3017.5,5.31979]
[1720340221470,3.46653994,3018.3,3017.5,2.31979]
[1720340221641,2.31926,3018.2,3017.5,2.31979]
[1720340222658,2.31926,3018.2,3017.4,5.31986]
[1720340222659,2.31934,3018.1,3017.4,5.31986]
[1720340223681,2.31934,3018.1,3017.4,3.0]
[1720340223860,4.73262,3018.0,3017.2,5.31997]
[1720340224058,4.73262,3018.0,3017.3,2.31995]
[1720340224369,4.73262,3018.0,3017.3,5.31995]
[1720340224752,4.73262,3018.0,3017.3,2.31995]
[1720340225372,4.73262,3018.0,3017.3,4.63985]
[1720340225550,4.73262,3018.0,3017.4,3.0]
[1720340225749,2.4132,3018.0,3017.4,3.0]
[1720340226081,4.73261,3018.0,3017.4,2.31986]
[1720340226290,4.73261,3018.0,3017.4,5.31986]
[1720340227866,4.73261,3018.0,3017.4,3.0]
[1720340228061,4.73261,3018.0,3017.4,5.31987]
[1720340228468,4.73261,3018.0,3017.4,3.0]
[1720340228797,4.73261,3018.0,3017.3,2.31989]
[1720340229290,4.73261,3018.0,3017.3,4.63978]
[1720340229484,4.73261,3018.0,3017.4,3.0]
[1720340229692,4.73261,3018.0,3017.4,5.31986]
[1720340232069,2.31954,3017.9,3017.4,3.0]
[1720340232269,2.31954,3017.9,3017.2,2.32002]
[1720340232471,2.31954,3017.9,3017.2,5.32002]
[1720340233187,4.73261,3018.0,3017.2,5.32002]
[1720340233401,7.05208,3018.0,3017.2,5.32002]
[1720340233577,2.31951,3017.9,3017.2,5.32002]
[1720340237904,2.31951,3017.9,3016.3,3.496]
[1720340237905,2.3664,3017.7,3016.4,3.496]
[1720340238207,8.87758615,3017.7,3016.3,2.2669]
[1720340238511,1.14757451,3017.6,3016.3,2.2669]
[1720340238817,1.14757451,3017.5,3016.3,2.2669]
[1720340239101,1.14757451,3017.4,3016.3,0.33225684]
[1720340239307,2.3664,3017.5,3016.0,5.847]
[1720340239484,1.14761713,3017.4,3016.0,5.847]
[1720340239804,2.3664,3017.5,3016.0,5.847]
[1720340239965,1.14762024,3017.4,3016.0,5.847]
[1720340240171,2.3664,3017.5,3016.0,5.847]
[1720340240491,1.14763472,3017.4,3016.1,3.0]
[1720340240694,1.14763472,3017.3,3016.1,3.0]
[1720340240897,2.3664,3017.2,3015.9,2.59103339]
[1720340241205,1.14763472,3017.1,3015.9,2.59103339]
[1720340241796,2.3664,3017.0,3016.0,0.06629315]
[1720340242102,2.04903819,3016.9,3016.0,0.06629315]
[1720340242308,1.14763472,3016.8,3016.0,0.06629315]
[1720340242616,1.14763472,3016.8,3015.5,2.351]
[1720340243410,0.55,3016.9,3015.5,2.351]
[1720340243582,1.14793328,3016.8,3015.5,2.351]
[1720340243789,1.55436661,3016.8,3015.5,2.351]
[1720340243977,1.14793328,3016.7,3015.5,2.351]
[1720340244376,1.14793328,3016.7,3015.5,2.67662161]
[1720340245009,1.14793328,3016.7,3015.6,3.0]
[1720340245225,2.3664,3016.6,3015.6,3.0]
[1720340245379,2.75847666,3016.6,3015.4,2.2669]
[1720340245704,2.75847666,3016.6,3015.4,2.59918009]
[1720340246020,2.3664,3016.6,3015.5,3.0]
[1720340246195,2.3664,3016.6,3015.5,5.351]
[1720340246405,2.3664,3016.6,3015.6,0.06630627]
[1720340246779,2.3664,3016.6,3015.5,5.351]
[1720340247107,2.3664,3016.6,3015.5,3.0]
[1720340247312,2.3664,3016.6,3015.5,5.351]
[1720340247986,8.87758615,3016.6,3015.5,5.351]
[1720340248180,9.76534477,3016.6,3015.5,5.351]
[1720340249422,8.87758615,3016.6,3015.5,5.351]
[1720340250126,2.3664,3016.5,3015.5,3.0]
[1720340250313,2.3664,3016.4,3015.1,0.32448664]
[1720340250514,3.25415862,3016.4,3015.2,0.06631329]
[1720340250716,2.3664,3016.4,3015.1,5.351]
[1720340253241,3.019,3016.3,3015.1,3.0]
[1720340253603,3.019,3016.3,3015.0,0.33669459]
[1720340253909,3.019,3016.3,3014.8,3.0]
[1720340254110,0.3019,3016.2,3014.8,3.0]
[1720340254440,2.469,3016.2,3014.8,3.0]
[1720340256021,2.469,3016.2,3014.8,3.33765402]
[1720340258244,2.469,3016.2,3015.1,2.351]
[1720340258477,2.469,3016.2,3015.2,0.06631596]
[1720340259854,2.469,3016.2,3014.8,3.33765402]
[1720340260068,2.469,3016.2,3014.9,2.351]
[1720340260782,2.469,3016.1,3014.9,2.351]
[1720340262572,2.469,3016.1,3014.8,3.33765402]
[1720340262875,2.469,3015.9,3014.8,0.33765402]
[1720340263059,2.469,3015.9,3014.6,3.0]
[1720340263260,2.469,3015.9,3014.5,5.351]
[1720340263484,2.469,3015.9,3014.5,2.351]
[1720340264092,3.019,3015.8,3014.5,2.351]
[1720340266009,3.019,3015.8,3014.5,2.68196427]
[1720340266211,3.019,3015.8,3014.6,3.06632746]
[1720340269521,3.019,3015.8,3014.6,3.0]
[1720340270041,2.469,3015.6,3014.6,3.0]
[1720340270581,2.7709,3015.6,3014.1,2.2918]
[1720340270806,2.469,3015.4,3014.1,4.6428]
[1720340271703,2.3337,3015.2,3014.1,4.6428]
[1720340271910,2.3337,3015.2,3014.2,3.0]
[1720340272103,2.3337,3015.2,3014.1,2.351]
[1720340273652,2.3337,3015.2,3014.1,2.68969671]
[1720340274148,2.3337,3015.2,3014.2,3.0]
[1720340277930,2.56707,3015.2,3014.2,3.0]
[1720340278107,1.14849882,3015.1,3014.2,3.0]
[1720340278313,3.48224382,3015.0,3014.2,3.0]
[1720340278509,2.8837,3014.9,3013.8,3.0]
[1720340278740,2.8837,3014.9,3013.7,2.351]
[1720340279451,3.17207,3014.9,3013.7,2.351]
[1720340279657,2.3337,3014.7,3013.7,2.351]
[1720340279951,2.3337,3014.7,3013.3,2.351]
[1720340280315,2.3337,3014.5,3013.3,2.6844794]
[1720340281153,2.3337,3014.5,3013.4,3.0]
[1720340283853,2.3337,3014.5,3013.7,2.351]
[1720340284061,2.3337,3014.5,3014.1,2.351]
[1720340286151,2.3337,3014.5,3014.2,0.06634167]
[1720340286456,2.4524,3014.5,3013.7,3.0]
[1720340286757,2.4524,3014.5,3013.9,2.351]
[1720340286952,2.4524,3014.5,3014.0,0.06634511]
[1720340287621,2.4524,3014.5,3013.9,2.351]
[1720340289369,2.4524,3014.5,3014.0,0.06634515]
[1720340290755,2.4524,3014.5,3014.1,0.06634279]
[1720340291358,2.4524,3014.5,3013.9,2.351]
[1720340295478,2.4524,3014.5,3013.5,2.351]
[1720340295824,2.4524,3014.5,3013.5,2.6759409]
[1720340296028,2.3383,3014.4,3013.5,2.6759409]
[1720340296276,2.3383,3014.4,3013.6,3.0]
[1720340298487,1.14879663,3014.3,3013.5,0.3249409]
[1720340298664,2.3383,3014.2,3013.2,3.0]
[1720340298971,2.3383,3014.2,3013.1,2.351]
[1720340299266,2.3383,3014.2,3013.1,2.67693498]
[1720340299439,2.3383,3014.2,3013.2,3.0]
[1720340300446,2.3383,3014.2,3013.3,0.06635807]
[1720340300650,2.3383,3014.2,3013.6,2.351]
[1720340300962,2.3383,3014.2,3013.7,0.06635273]
[1720340302153,6.51118615,3014.3,3014.0,2.351]
[1720340302357,8.84948615,3014.9,3014.1,0.066345]
[1720340303157,8.84948615,3014.9,3014.4,2.351]
[1720340303361,8.84948615,3014.9,3014.5,0.06633671]
[1720340304647,6.51118615,3014.9,3014.5,0.06633671]
[1720340306744,8.84948615,3015.3,3014.5,0.06633671]
[1720340307173,8.84948615,3015.3,3014.8,2.351]
[1720340307386,8.84948615,3015.3,3014.9,0.06632599]
[1720340307623,6.51118615,3015.3,3014.9,0.06632599]
[1720340307968,6.51118615,3015.3,3014.8,2.351]
[1720340308612,6.51118615,3015.3,3014.4,2.351]
[1720340310001,2.3383,3015.2,3014.2,3.0]
[1720340310307,2.3383,3015.2,3014.0,5.351]
[1720340313262,2.3088,3015.0,3013.9,0.3339165]
[1720340313465,2.3088,3015.0,3013.6,2.351]
[1720340313665,2.53968,3014.9,3013.6,2.351]
[1720340313861,2.3088,3014.8,3013.6,2.351]
[1720340319818,2.3088,3014.8,3013.8,2.32263]
[1720340320135,2.3088,3014.8,3014.4,2.32216]
[1720340320886,2.3088,3014.8,3014.4,4.64427]
[1720340321133,2.3088,3014.8,3014.5,5.3221]
[1720340321357,2.3088,3014.8,3014.6,2.32201]
[1720340322326,2.562768,3014.8,3014.5,3.0]
[1720340322515,2.562768,3014.8,3014.4,2.32211]
[1720340322719,2.562768,3014.8,3014.3,3.0]
[1720340322891,2.562768,3014.8,3014.2,2.32231]
[1720340322892,2.562768,3014.8,3014.2,2.32228]
[1720340323092,2.562768,3014.8,3014.1,2.32236]
[1720340323331,0.2562768,3014.7,3014.3,2.32226]
[1720340323550,2.4804,3014.6,3014.3,2.32226]
[1720340323901,2.4804,3014.6,3014.3,2.3222]
[1720340324087,2.4804,3014.6,3014.4,2.32213]
[1720340324293,2.4804,3014.6,3014.4,5.32213]
[1720340324611,2.4804,3014.6,3014.5,2.3221]
[1720340324804,2.4804,3014.6,3014.5,5.3221]
[1720340326529,2.4804,3014.6,3014.5,2.3221]
[1720340329838,2.4804,3014.6,3014.4,3.0]
[1720340330043,2.4804,3014.6,3014.4,2.32217]
[1720340330243,2.4804,3014.6,3014.4,5.32217]
[1720340334063,2.4804,3014.6,3014.4,6.30317]
[1720340338839,2.4804,3014.6,3014.4,3.981]
[1720340339039,2.4804,3014.6,3014.4,0.981]
[1720340339869,2.72844,3014.6,3014.3,3.0]
[1720340340076,2.72844,3014.6,3014.0,2.32247]
[1720340340246,2.32196,3014.7,3014.0,2.32247]
[1720340340247,2.3047,3014.4,3014.0,2.32247]
[1720340340680,2.3047,3014.2,3013.6,2.32273]
[1720340340881,1.14873706,3014.1,3013.6,3.30373]
[1720340341247,1.95854177,3014.1,3013.6,3.30373]
[1720340341444,1.14873706,3014.0,3013.6,3.30373]
[1720340341863,1.14873706,3014.0,3013.6,2.32273]
[1720340342966,2.3047,3014.0,3013.4,5.32293]
[1720340343173,1.14891016,3013.9,3013.4,5.32293]
[1720340343480,2.3047,3014.0,3013.5,2.32286]
[1720340343678,1.14892218,3013.9,3013.5,2.32286]
[1720340343857,2.3047,3014.0,3013.5,2.32286]
[1720340344056,1.14892218,3013.9,3013.5,2.32286]
[1720340344267,2.3047,3014.0,3013.5,2.32286]
[1720340344683,2.3047,3014.0,3013.5,4.64569]
[1720340344867,2.3047,3014.0,3013.6,3.0]
[1720340345075,2.3047,3014.4,3013.6,3.0]
[1720340345247,1.14882807,3014.3,3013.8,2.32262]
[1720340345453,1.14882807,3014.2,3013.7,2.32272]
[1720340345660,1.14882807,3014.1,3013.7,2.32272]
[1720340345877,1.14882807,3014.2,3013.7,2.32272]
[1720340346156,2.32226,3014.3,3013.6,3.0]
[1720340346351,2.3047,3014.0,3013.6,5.32277]
[1720340346577,2.3047,3014.0,3013.4,3.0]
[1720340346778,4.62719,3014.0,3013.4,2.32295]
[1720340346989,3.47150997,3013.9,3013.2,2.32305]
[1720340347147,3.45366749,3013.8,3013.0,2.32326]
[1720340347352,3.47175749,3013.7,3013.0,2.32326]
[1720340347588,1.14896749,3013.6,3013.0,2.32326]
[1720340348387,2.3047,3013.5,3012.8,2.32337]
[1720340348562,4.62762,3013.5,3012.8,5.32337]
[1720340348765,5.090369,3013.5,3012.9,3.0]
[1720340349168,5.090369,3013.5,3012.8,5.32336]
[1720340349545,2.767449,3013.5,3012.9,2.32329]
[1720340349744,2.767449,3013.5,3012.9,5.32329]
[1720340352191,2.3047,3013.5,3013.0,2.32326]
[1720340352397,2.3047,3013.5,3013.0,5.32326]
[1720340352601,2.3047,3013.5,3013.0,5.3232]
[1720340352798,2.3047,3013.5,3013.2,2.3231]
[1720340353160,4.69831,3013.8,3013.2,2.3231]
[1720340353377,0.702092,3013.7,3013.2,2.3231]
[1720340354383,4.69831,3013.8,3013.2,2.3231]
[1720340354384,2.3756,3014.5,3014.0,2.32249]
[1720340354702,2.3756,3014.8,3014.1,0.0663488]
[1720340355267,2.3756,3014.8,3014.5,2.3221]
[1720340384335,4.65856642,3014.6,3014.5,2.3221]
[1720340385716,4.65856669,3014.6,3014.5,2.3221]
[1720340385912,4.65856669,3014.6,3014.3,2.32225]
[1720340386136,4.65856669,3014.6,3014.3,5.32225]
[1720340386137,1.14856669,3014.5,3014.3,5.32225]
[1720340386512,1.14856669,3014.5,3014.4,2.32218]
[1720340386718,1.14856669,3014.5,3014.4,6.30318]
[1720340388554,1.14856669,3014.5,3014.4,3.981]
[1720340388856,0.46585667,3014.5,3013.5,4.69361]
[1720340389074,1.14864647,3014.5,3014.0,5.62589]
[1720340389234,1.14864647,3014.4,3014.1,3.0]
[1720340389547,1.14864647,3014.3,3014.1,3.0]
[1720340389739,1.14864647,3014.2,3014.1,3.0]
[1720340389944,1.14864647,3014.5,3014.1,5.32236]
[1720340391418,1.84670712,3014.5,3014.1,3.0]
[1720340391743,1.14864647,3014.4,3014.0,3.30347]
[1720340392054,0.69806065,3014.5,3014.1,3.0]
[1720340392360,1.14872261,3014.4,3014.1,5.3224]
[1720340393141,1.68440094,3014.4,3014.1,5.3224]
[1720340393333,3.46772261,3014.3,3013.9,3.981]
[1720340393530,1.14872261,3014.2,3014.0,2.32247]
[1720340394321,1.14872261,3014.2,3014.0,4.64491]
[1720340394663,1.14872261,3014.2,3014.1,3.0]
[1720340395262,1.14872261,3014.2,3014.0,5.32244]
[1720340395417,2.319,3014.3,3014.0,5.32244]
[1720340395621,1.14873221,3014.2,3014.0,5.32244]
[1720340395859,2.319,3014.3,3014.0,5.32244]
[1720340396028,1.14873215,3014.2,3014.0,7.64488]
[1720340396226,2.319,3014.3,3014.0,6.30344]
[1720340396561,1.14873979,3014.2,3014.0,8.62588]
[1720340396756,2.319,3014.3,3014.0,8.62588]
[1720340396960,1.14873071,3014.2,3014.0,6.30344]
[1720340397137,2.319,3014.3,3014.0,6.30344]
[1720340397537,2.319,3014.3,3014.0,8.62588]
[1720340397757,2.319,3014.3,3014.0,6.30344]
[1720340397955,2.319,3014.3,3014.0,8.62588]
[1720340398165,2.319,3014.3,3014.0,8.62589]
[1720340398368,2.319,3014.3,3014.0,6.30344]
[1720340398726,2.319,3014.3,3014.0,8.62589]
[1720340398950,2.319,3014.3,3014.0,6.30344]
[1720340399146,2.319,3014.3,3014.0,8.62589]
[1720340399550,2.319,3014.3,3014.0,6.30344]
[1720340399737,2.319,3014.3,3014.0,8.62589]
[1720340400446,0.69806065,3014.5,3014.0,7.64489]
[1720340400652,1.14873407,3014.4,3014.1,2.32241]
[1720340400860,1.14873407,3014.3,3014.1,5.32241]
[1720340401072,5.829,3014.6,3014.1,5.32241]
[1720340401363,1.14869726,3014.5,3014.1,5.32241]
[1720340401519,1.14869726,3014.4,3014.1,5.32241]
[1720340401724,5.829,3014.6,3014.1,5.32241]
[1720340401925,1.14869464,3014.5,3014.1,5.32241]
[1720340402148,1.14869464,3014.4,3014.1,5.32241]
[1720340402460,1.14869464,3014.3,3014.2,3.30332]
[1720340402644,1.14869464,3014.5,3014.2,3.30332]
[1720340402958,1.14869464,3014.5,3014.4,3.30318]
[1720340403157,1.14869464,3014.5,3014.4,2.32218]
[1720340404522,2.319,3014.4,3014.1,3.0]
[1720340404725,1.14867982,3014.3,3014.0,2.32249]
[1720340404965,1.14867982,3014.2,3014.0,2.32249]
[1720340405167,1.14867982,3014.3,3014.0,2.32249]
[1720340405346,1.14877991,3014.2,3014.0,2.32249]
[1720340405543,3.24580381,3014.4,3014.0,2.32249]
[1720340405892,1.14875815,3014.3,3013.9,3.0]
[1720340406052,1.14875815,3014.2,3013.9,3.0]
[1720340406242,1.14875815,3014.2,3010.9,4.00315533]
[1720340406243,0.4394562,3014.2,3013.6,2.32276]
[1720340406437,2.319,3014.0,3013.4,2.3229]
[1720340406770,1.14875815,3013.9,3013.4,2.3229]
[1720340407642,2.319,3014.0,3013.4,2.3229]
[1720340407868,1.14897156,3013.9,3013.4,2.3229]
[1720340408066,1.14897156,3013.8,3013.4,2.3229]
[1720340408242,2.319,3014.0,3013.4,2.3229]
[1720340408444,1.14895304,3013.9,3013.4,5.3229]
[1720340408695,1.14895304,3013.8,3013.5,2.32283]
[1720340408973,6.95064235,3014.2,3013.6,2.32278]
[1720340409186,1.14892659,3014.1,3013.6,2.32278]
[1720340409353,1.14892659,3014.0,3013.7,2.3227]
[1720340409547,6.51118615,3014.2,3014.0,2.32248]
[1720340409747,6.51118615,3014.2,3014.1,3.30341]
[1720340410057,5.829,3014.6,3014.1,3.30341]
[1720340410267,1.14871845,3014.5,3014.1,3.30341]
[1720340410481,1.14871845,3014.4,3014.1,0.981]
[1720340410657,1.14871845,3014.4,3014.3,5.62552]
[1720340410844,3.51,3014.6,3014.5,2.3221]
[1720340411343,3.51,3014.6,3014.5,2.3121]
[1720340414684,4.65857633,3014.6,3014.5,2.3121]
[1720340415671,5.12443396,3014.6,3014.1,2.32234]
[1720340415877,1.14857633,3014.5,3014.1,2.32234]
[1720340416070,1.14857633,3014.5,3014.2,2.32232]
[1720340417353,3.51,3014.6,3014.3,2.32224]
[1720340417664,1.14866476,3014.5,3014.3,2.32224]
[1720340417865,3.51,3014.6,3014.2,0.981]
[1720340418077,1.14867157,3014.5,3014.2,3.30333]
[1720340418286,4.10643,3014.6,3014.2,3.30333]
[1720340418501,1.14868107,3014.5,3014.1,3.0]
[1720340418677,1.14868107,3014.4,3013.8,4.6452]
[1720340418988,1.14868107,3014.3,3013.9,5.32257]
[1720340419193,1.14868107,3014.4,3014.0,3.0]
[1720340419358,1.14868107,3014.4,3013.9,2.32257]
[1720340419558,0.18047541,3014.3,3013.7,3.0]
[1720340419782,1.14868107,3014.2,3013.6,3.30375]
[1720340419990,1.14868107,3014.2,3013.7,3.0]
[1720340420602,0.18047541,3014.3,3013.7,3.0]
[1720340420801,1.14880377,3014.2,3013.7,3.0]
[1720340420983,0.18047541,3014.3,3013.8,2.32264]
[1720340421189,1.148788,3014.2,3013.8,2.32264]
[1720340421505,0.36514534,3014.2,3013.7,3.0]
[1720340421664,1.14878939,3014.1,3013.7,2.32271]
[1720340421869,1.14878939,3014.0,3013.7,5.32271]
[1720340422089,1.14878939,3014.1,3013.7,5.32271]
[1720340422305,1.14887046,3014.0,3013.7,5.32271]
[1720340422519,2.81944534,3014.2,3013.7,5.32271]
[1720340422664,1.44885262,3014.1,3013.7,5.32271]
[1720340422870,1.14886054,3014.0,3013.7,5.32271]
[1720340423174,0.29999208,3014.1,3013.7,5.32271]
[1720340423373,1.14887702,3014.0,3013.7,5.32271]
[1720340423728,2.81944534,3014.2,3013.8,2.32264]
[1720340423901,1.14885421,3014.1,3013.8,5.32264]
[1720340424210,2.4543,3014.2,3013.8,5.32264]
[1720340424395,1.1488449,3014.1,3013.8,2.32264]
[1720340424609,5.83207,3014.6,3013.8,3.30358]
[1720340424808,5.83207,3014.6,3013.9,2.32251]
[1720340424809,2.38315816,3014.4,3013.9,2.32251]
[1720340424990,1.14883255,3014.3,3013.9,2.32251]
[1720340425322,1.14883255,3014.2,3013.9,2.32251]
[1720340425619,8.96548615,3014.5,3014.0,2.32249]
[1720340425774,1.14875799,3014.4,3014.2,2.32228]
[1720340425977,6.51118615,3014.5,3014.4,2.32218]
[1720340426174,7.65983766,3014.5,3014.4,2.32218]
[1720340426400,7.65983766,3014.5,3014.2,2.32228]
[1720340426401,1.14865151,3014.5,3014.2,2.32228]
[1720340426593,1.14865151,3014.4,3014.2,2.32228]
[1720340427009,0.46586515,3014.5,3014.2,2.32228]
[1720340427196,1.14871924,3014.4,3014.2,2.32228]
[1720340427391,0.46586515,3014.5,3014.2,2.32228]
[1720340427602,1.14871219,3014.4,3014.2,2.32228]
[1720340427784,3.51,3014.6,3014.2,2.32228]
[1720340428107,1.1486996,3014.5,3014.2,2.32228]
[1720340428311,1.1486996,3014.4,3014.2,2.32228]
[1720340428483,1.1486996,3014.5,3014.2,2.32228]
[1720340429010,1.1486996,3014.5,3014.2,4.64457]
[1720340429609,1.1486996,3014.5,3014.3,2.32224]
[1720340430185,3.51,3014.6,3014.3,2.32224]
[1720340430387,2.29732636,3014.5,3014.3,2.32224]
[1720340430598,1.14866318,3014.5,3014.3,2.32224]
[1720340431095,3.51,3014.6,3014.3,2.32224]
[1720340431291,1.14866757,3014.5,3014.3,2.32224]
[1720340431490,3.51,3014.6,3014.3,2.32224]
[1720340431806,1.14866894,3014.5,3014.3,2.32224]
[1720340432012,3.51,3014.6,3014.3,2.32224]
[1720340432207,1.14865882,3014.5,3014.3,2.32224]
[1720340432401,3.51,3014.6,3014.3,2.32224]